fUSD/lending_fUSD_20241110
["ID","MTS","AMOUNT","RATE_DAILY","PERIOD"]
[341815747,1731237384522,-337.49650544,0.00013598,2]
[341815748,1731237384547,-486.7671,0.00013598,2]
[341815749,1731237384575,-764.3486,0.00013598,2]
[341815750,1731237384602,-37873.4214,0.00013598,2]
[341815751,1731237384629,-216.4358,0.00013598,2]
[341815752,1731237384648,-220.01,0.00013598,2]
[341815753,1731237384670,-23900.0,0.00013598,2]
[341815754,1731237384681,-362.16,0.00013598,2]
[341815755,1731237384698,-1141.78151573,0.00013598,2]
[341815756,1731237384709,-1141.78151572,0.00013598,2]
[341815757,1731237384720,-1141.78151572,0.00013598,2]
[341815758,1731237384748,-1141.78151572,0.00013598,2]
[341815759,1731237384772,-1141.78151572,0.00013598,2]
[341815760,1731237384789,-1141.78151572,0.00013598,2]
[341815761,1731237384823,-1141.78151572,0.00013598,2]
[341815762,1731237384838,-1000.0,0.00013598,2]
[341815763,1731237384849,-66525.35938995,0.00013598,2]
[341815764,1731237384858,-28005.41197953,0.00013598,2]
[341815765,1731237384869,-1347.08577339,0.00013598,2]
[341815766,1731237384879,-1141.78151572,0.00013598,2]
[341815767,1731237384894,-1141.78151572,0.00013598,2]
[341815768,1731237384980,-150.0,0.00013598,2]
[341815769,1731237385037,-500.0,0.00013598,2]
[341815770,1731237385187,-500.0,0.00013598,2]
[341815771,1731237385204,-500.0,0.00013598,2]
[341815772,1731237385222,-500.0,0.00013598,2]
[341815773,1731237385248,-500.0,0.00013598,2]
[341815774,1731237385266,-500.0,0.00013598,2]
[341815775,1731237385293,-500.0,0.00013598,2]
[341815776,1731237385304,-500.0,0.00013598,2]
[341815777,1731237385327,-500.0,0.00013598,2]
[341815778,1731237385345,-500.0,0.00013598,2]
[341815779,1731237385368,-500.0,0.00013598,2]
[341815780,1731237385387,-500.0,0.00013598,2]
[341815781,1731237385398,-500.0,0.00013598,2]
[341815782,1731237385413,-409.66817561,0.00013598,2]
[341815783,1731237385424,-621.00752348,0.00013598,2]
[341815784,1731237385435,-337.49650544,0.00013598,2]
[341815785,1731237385454,-486.7671,0.00013598,2]
[341815786,1731237385477,-764.3486,0.00013598,2]
[341815787,1731237385496,-37873.4214,0.00013598,2]
[341815788,1731237385507,-216.4358,0.00013598,2]
[341815789,1731237385530,-73859.58822222,0.00013598,2]
[341815790,1731237448543,179.74,0.00010347,2]
[341815791,1731237483485,596.95,0.00026986,120]
[341815793,1731237514453,156.604,0.0002619,60]
[341815794,1731237514906,156.584,0.0002673,60]
[341815795,1731237667236,300.0,0.00027,60]
[341815796,1731237775815,2751.0,0.00012427,2]
[341815801,1731237806683,1042.6957363,0.00027,60]
[341815802,1731237815864,300.0,0.00027,120]
[341815803,1731237816092,392.15519023,0.00012451,2]
[341815804,1731237901892,413.94,0.00012381,2]
[341815805,1731237932939,753.18,0.00010534,2]
[341815806,1731237955413,5801.74918799,6.94e-05,2]
[341815807,1731237962615,161.85608952,9e-05,2]
[341815810,1731238038149,-250.0,0.00012513,2]
[341815811,1731238038171,-670.97,0.00012551,2]
[341815812,1731238038194,-691.35,0.00012607,2]
[341815813,1731238038218,-164.96,0.0001269,2]
[341815814,1731238038240,-250.0,0.000127,2]
[341815815,1731238038262,-829.59,0.00012761,2]
[341815816,1731238038288,-753.18,0.00012798,2]
[341815817,1731238038310,-358.98220042,0.00012956,2]
[341815818,1731238044174,-209.95061247,0.00012956,2]
[341815819,1731238053087,-472.59063981,0.00012956,2]
[341815820,1731238082766,410.69176885,0.00015,10]
[341815821,1731238085780,626.77,0.00012484,2]
[341815823,1731238120632,23900.0,0.00012484,2]
[341815824,1731238159384,251.81808001,0.00012422,2]
[341815825,1731238171100,-548.9565473,0.00012956,2]
[341815842,1731238217318,497.26528221,0.00012565,2]
[341815861,1731238232105,-301.22471779,0.00012565,2]
[341815863,1731238232114,-150.0,0.00012999,2]
[341815865,1731238232123,-212.73186395,0.00013,2]
[341815867,1731238232181,-923.40505495,0.00013,2]
[341815868,1731238232193,-3208.589,0.00013,2]
[341815869,1731238232204,-4372.89604519,0.00013,2]
[341815870,1731238232252,-1274.20562059,0.00013,2]
[341815871,1731238232332,-114256.88966589,0.00013,2]
[341815872,1731238232342,-1000.0,0.00013002,2]
[341815873,1731238232351,-150.0,0.000132,2]
[341815874,1731238232361,-150.0,0.000132,2]
[341815875,1731238232371,-300.0,0.000132,4]
[341815876,1731238232381,-691.35,0.00013238,2]
[341815877,1731238232391,-150.0,0.000133,2]
[341815878,1731238232401,-432.32,0.000133,2]
[341815879,1731238232412,-700.0,0.000133,4]
[341815880,1731238232422,-299.99,0.00013324,2]
[341815881,1731238232433,-1103.0,0.00013324,2]
[341815882,1731238232442,-463.54,0.00013324,2]
[341815883,1731238232452,-150.99,0.00013324,2]
[341815884,1731238232462,-432.99,0.0001337,2]
[341815885,1731238232472,-432.99,0.0001337,2]
[341815886,1731238232482,-432.99,0.0001337,2]
[341815887,1731238232491,-432.99,0.0001337,2]
[341815888,1731238232501,-432.99,0.0001337,2]
[341815889,1731238232510,-432.99,0.0001337,2]
[341815891,1731238232520,-432.99,0.0001337,2]
[341815893,1731238232529,-432.99,0.0001337,2]
[341815895,1731238232539,-432.99,0.0001337,2]
[341815897,1731238232548,-432.99,0.0001337,2]
[341815898,1731238232557,-432.99,0.0001337,2]
[341815899,1731238232566,-432.99,0.0001337,2]
[341815900,1731238232576,-432.99,0.00013378,2]
[341815901,1731238232585,-432.99,0.000134,2]
[341815903,1731238232595,-150.0,0.000134,2]
[341815904,1731238232604,-150.0,0.000134,2]
[341815905,1731238232614,-264.86262764,0.000134,2]
[341815906,1731238232741,-168.12737236,0.000134,2]
[341815907,1731238232750,-432.99,0.000134,2]
[341815908,1731238232760,-150.0,0.000134,2]
[341815909,1731238232769,-1100.0,0.000134,4]
[341815910,1731238232779,-223.70580278,0.00013423,2]
[341815911,1731238232791,-1097.39,0.00013424,2]
[341815912,1731238232800,-908.21338602,0.00013424,2]
[341815919,1731238238203,-189.17661398,0.00013424,2]
[341815920,1731238238212,-1097.39,0.00013424,2]
[341815921,1731238238221,-1097.39,0.00013424,2]
[341815922,1731238238230,-1097.39,0.00013424,2]
[341815923,1731238238239,-1097.39,0.00013424,2]
[341815924,1731238238249,-67.79109175,0.00013424,2]
[341815925,1731238238260,-1029.59890825,0.00013424,2]
[341815926,1731238238269,-1097.39,0.00013424,2]
[341815927,1731238238279,-904.31497951,0.00013424,2]
[341815928,1731238238554,-193.07502049,0.00013424,2]
[341815929,1731238238564,-1097.39,0.00013424,2]
[341815930,1731238238573,-1097.39,0.00013424,2]
[341815931,1731238238582,-1097.39,0.00013424,2]
[341815932,1731238238591,-1097.39,0.00013424,2]
[341815933,1731238238600,-1097.39,0.00013424,2]
[341815934,1731238238609,-1097.39,0.00013424,2]
[341815935,1731238238618,-1097.39,0.00013424,2]
[341815936,1731238238627,-1097.39,0.00013424,2]
[341815938,1731238238636,-1097.39,0.00013424,2]
[341815940,1731238238646,-1097.39,0.00013424,2]
[341815941,1731238238655,-1097.39,0.00013424,2]
[341815943,1731238238665,-1097.39,0.00013424,2]
[341815945,1731238238674,-1097.39,0.00013424,2]
[341815947,1731238238684,-1097.39,0.00013424,2]
[341815949,1731238238693,-1097.52990613,0.00013424,2]
[341815951,1731238238703,-150.0,0.00013432,2]
[341815953,1731238238712,-215336.56,0.000135,2]
[341815955,1731238238721,-150.0,0.000135,2]
[341815957,1731238238730,-432.99,0.000135,2]
[341815959,1731238238740,-1500.0,0.000135,4]
[341815960,1731238238750,-426.22825879,0.00013536,2]
[341815961,1731238238759,-150.0,0.00013592,2]
[341815962,1731238238768,-500.0,0.00013597,2]
[341815963,1731238238777,-500.0,0.00013597,2]
[341815964,1731238238787,-500.0,0.00013597,2]
[341815965,1731238238801,-500.0,0.00013597,2]
[341815966,1731238238810,-292.66013269,0.00013597,2]
[341815967,1731238238819,-500.0,0.00013597,2]
[341815969,1731238238830,-500.0,0.00013597,2]
[341815970,1731238238839,-500.0,0.00013597,2]
[341815973,1731238238849,-494.21763413,0.00013597,2]
[341815974,1731238238859,-153.37889064,0.00013598,2]
[341815976,1731238238870,-92145.20588889,0.00013598,2]
[341815978,1731238238880,-10119.1266,0.00013598,2]
[341815981,1731238238889,-9920.0764,0.00013598,2]
[341815982,1731238238899,-1000.0,0.00013598,2]
[341815984,1731238238908,-128779.4627,0.00013598,2]
[341815985,1731238238917,-12190.545,0.00013598,2]
[341815986,1731238238926,-10874.8489,0.00013598,2]
[341815987,1731238238936,-500.0,0.00013598,2]
[341815988,1731238238947,-500.0,0.000136,2]
[341815989,1731238238957,-1000.0,0.000136,2]
[341815990,1731238238966,-1900.0,0.000136,4]
[341815991,1731238238975,-500.0,0.00013673,2]
[341815992,1731238238983,-500.0,0.00013673,2]
[341815993,1731238238992,-2197.5299741,0.00013688,2]
[341815995,1731238239002,-6978.2711732,0.00013688,2]
[341815997,1731238239011,-1677.37339294,0.00013697,2]
[341815999,1731238239020,-432.7207229,0.00013697,2]
[341816002,1731238239030,-1000.0,0.00013697,2]
[341816004,1731238239040,-151.0,0.00013698,2]
[341816006,1731238239049,-151.0,0.00013698,2]
[341816007,1731238239058,-151.0,0.00013698,2]
[341816009,1731238239067,-151.0,0.00013698,2]
[341816011,1731238239077,-151.0,0.00013698,2]
[341816013,1731238239086,-151.0,0.00013698,2]
[341816015,1731238239095,-151.0,0.00013698,2]
[341816017,1731238239104,-255.453491,0.00013698,2]
[341816019,1731238239114,-151.0,0.00013698,2]
[341816021,1731238239123,-246.144678,0.00013698,2]
[341816023,1731238239136,-158.212262,0.00013698,2]
[341816025,1731238239157,-291.309623,0.00013698,2]
[341816027,1731238239179,-291.309623,0.00013698,2]
[341816029,1731238239201,-291.309623,0.00013698,2]
[341816031,1731238239222,-291.309623,0.00013698,2]
[341816033,1731238239243,-291.309623,0.00013698,2]
[341816035,1731238239265,-291.309623,0.00013698,2]
[341816037,1731238239286,-291.309623,0.00013698,2]
[341816039,1731238239309,-291.309623,0.00013698,2]
[341816041,1731238239319,-291.309623,0.00013698,2]
[341816043,1731238239328,-291.309623,0.00013698,2]
[341816045,1731238239337,-291.309623,0.00013698,2]
[341816047,1731238239347,-291.309623,0.00013698,2]
[341816049,1731238239356,-291.309623,0.00013698,2]
[341816051,1731238239364,-291.309623,0.00013698,2]
[341816053,1731238239374,-291.309623,0.00013698,2]
[341816055,1731238239383,-291.309623,0.00013698,2]
[341816057,1731238239392,-291.309623,0.00013698,2]
[341816059,1731238239401,-291.309623,0.00013698,2]
[341816061,1731238239410,-291.309623,0.00013698,2]
[341816063,1731238239419,-291.309619,0.00013698,2]
[341816064,1731238239428,-151.0,0.00013698,2]
[341816065,1731238239440,-151.0,0.00013698,2]
[341816066,1731238239450,-151.0,0.00013698,2]
[341816067,1731238239459,-157.149119,0.00013698,2]
[341816068,1731238239469,-220.247961,0.00013698,2]
[341816069,1731238239478,-220.247961,0.00013698,2]
[341816070,1731238239487,-220.247961,0.00013698,2]
[341816071,1731238239496,-220.247961,0.00013698,2]
[341816072,1731238239506,-220.247961,0.00013698,2]
[341816073,1731238239515,-220.247961,0.00013698,2]
[341816074,1731238239524,-220.247961,0.00013698,2]
[341816075,1731238239534,-220.247961,0.00013698,2]
[341816076,1731238239543,-220.247961,0.00013698,2]
[341816077,1731238239553,-220.247961,0.00013698,2]
[341816078,1731238239562,-220.247961,0.00013698,2]
[341816079,1731238239572,-220.247961,0.00013698,2]
[341816080,1731238239581,-220.247961,0.00013698,2]
[341816081,1731238239590,-220.247961,0.00013698,2]
[341816082,1731238239600,-220.247961,0.00013698,2]
[341816083,1731238239609,-220.247961,0.00013698,2]
[341816084,1731238239619,-220.247961,0.00013698,2]
[341816085,1731238239628,-220.247961,0.00013698,2]
[341816086,1731238239638,-220.247961,0.00013698,2]
[341816087,1731238239648,-220.247961,0.00013698,2]
[341816088,1731238239657,-220.247961,0.00013698,2]
[341816089,1731238239667,-220.247961,0.00013698,2]
[341816090,1731238239676,-220.247961,0.00013698,2]
[341816091,1731238239686,-220.247961,0.00013698,2]
[341816092,1731238239696,-180.019179,0.00013698,2]
[341816093,1731238239705,-153.175801,0.00013698,2]
[341816094,1731238239714,-180.019179,0.00013698,2]
[341816095,1731238239724,-180.019179,0.00013698,2]
[341816096,1731238239734,-151.3172,0.00013698,2]
[341816097,1731238239743,-151.3172,0.00013698,2]
[341816098,1731238239753,-151.3172,0.00013698,2]
[341816099,1731238239762,-151.3172,0.00013698,2]
[341816100,1731238239771,-151.3172,0.00013698,2]
[341816101,1731238239780,-151.3172,0.00013698,2]
[341816102,1731238239790,-151.3172,0.00013698,2]
[341816103,1731238239802,-151.3172,0.00013698,2]
[341816104,1731238239811,-151.3172,0.00013698,2]
[341816105,1731238239820,-151.3172,0.00013698,2]
[341816106,1731238239830,-151.3172,0.00013698,2]
[341816107,1731238239841,-151.3172,0.00013698,2]
[341816108,1731238239851,-151.3172,0.00013698,2]
[341816109,1731238239861,-151.3172,0.00013698,2]
[341816110,1731238239872,-151.3172,0.00013698,2]
[341816111,1731238239881,-151.3172,0.00013698,2]
[341816112,1731238239890,-151.3172,0.00013698,2]
[341816113,1731238239900,-151.3172,0.00013698,2]
[341816114,1731238239910,-151.3172,0.00013698,2]
[341816115,1731238239920,-151.3172,0.00013698,2]
[341816116,1731238239929,-151.3172,0.00013698,2]
[341816117,1731238239940,-151.3172,0.00013698,2]
[341816118,1731238239949,-151.3172,0.00013698,2]
[341816119,1731238239959,-151.3172,0.00013698,2]
[341816120,1731238239969,-500.0,0.00013698,2]
[341816122,1731238239978,-430.58030747,0.00013698,2]
[341816124,1731238239987,-500.0,0.00013698,2]
[341816127,1731238240258,-500.0,0.00013698,2]
[341816128,1731238240268,-340.68438987,0.00013698,2]
[341816129,1731238240278,-500.0,0.00013698,2]
[341816130,1731238240288,-500.0,0.00013698,2]
[341816131,1731238240297,-500.0,0.00013698,2]
[341816132,1731238240306,-500.0,0.00013698,2]
[341816133,1731238240316,-500.0,0.00013698,2]
[341816134,1731238240325,-500.0,0.00013698,2]
[341816135,1731238240334,-500.0,0.00013698,2]
[341816136,1731238240343,-476.6408157,0.00013698,2]
[341816137,1731238240352,-500.0,0.00013698,2]
[341816138,1731238240362,-506.70427732,0.00013698,2]
[341816139,1731238240371,-508.16408577,0.00013698,2]
[341816140,1731238240380,-500.0,0.00013698,2]
[341816141,1731238240389,-500.0,0.00013698,2]
[341816142,1731238240398,-500.0,0.00013698,2]
[341816143,1731238240407,-500.0,0.00013698,2]
[341816144,1731238240416,-500.0,0.00013698,2]
[341816145,1731238240426,-500.0,0.00013698,2]
[341816146,1731238240436,-500.0,0.00013698,2]
[341816147,1731238240446,-500.0,0.00013698,2]
[341816148,1731238240456,-500.0,0.00013698,2]
[341816149,1731238240465,-532.53957656,0.00013698,2]
[341816150,1731238240474,-501.74061533,0.00013698,2]
[341816151,1731238240483,-500.0,0.00013698,2]
[341816152,1731238240492,-522.05220429,0.00013698,2]
[341816153,1731238240502,-500.0,0.00013698,2]
[341816154,1731238240511,-503.38793838,0.00013698,2]
[341816155,1731238240520,-175.05777588,0.00013698,2]
[341816156,1731238240529,-535.62,0.00013698,2]
[341816157,1731238240538,-535.62,0.00013698,2]
[341816158,1731238240547,-535.62,0.00013698,2]
[341816159,1731238240557,-535.62,0.00013698,2]
[341816160,1731238240566,-535.62,0.00013698,2]
[341816161,1731238240575,-535.62,0.00013698,2]
[341816162,1731238240584,-535.62,0.00013698,2]
[341816163,1731238240594,-535.62,0.00013698,2]
[341816164,1731238240604,-535.62,0.00013698,2]
[341816166,1731238240613,-535.62,0.00013698,2]
[341816167,1731238240622,-535.62,0.00013698,2]
[341816168,1731238240631,-535.62,0.00013698,2]
[341816169,1731238240641,-535.62,0.00013698,2]
[341816170,1731238240651,-535.62,0.00013698,2]
[341816171,1731238240660,-535.62,0.00013698,2]
[341816172,1731238240670,-535.62,0.00013698,2]
[341816173,1731238240679,-535.62,0.00013698,2]
[341816174,1731238240689,-535.62,0.00013698,2]
[341816175,1731238240698,-535.62,0.00013698,2]
[341816176,1731238240707,-535.62,0.00013698,2]
[341816177,1731238240716,-535.62,0.00013698,2]
[341816178,1731238240725,-535.62,0.00013698,2]
[341816179,1731238240735,-535.62,0.00013698,2]
[341816180,1731238240744,-535.76072704,0.00013698,2]
[341816181,1731238240753,-500.0,0.00013698,2]
[341816182,1731238240762,-500.0,0.00013698,2]
[341816183,1731238240772,-500.0,0.00013698,2]
[341816184,1731238240781,-500.0,0.00013698,2]
[341816185,1731238240792,-500.0,0.00013698,2]
[341816186,1731238240803,-500.0,0.00013698,2]
[341816187,1731238240812,-500.0,0.00013698,2]
[341816188,1731238240822,-500.0,0.00013698,2]
[341816189,1731238240831,-500.0,0.00013698,2]
[341816190,1731238240841,-251.52612603,0.00013698,2]
[341816191,1731238240850,-500.0,0.00013698,2]
[341816192,1731238240860,-500.0,0.00013698,2]
[341816193,1731238240872,-500.0,0.00013698,2]
[341816194,1731238240882,-500.0,0.00013698,2]
[341816195,1731238240891,-500.0,0.00013698,2]
[341816196,1731238240901,-500.0,0.00013698,2]
[341816197,1731238240910,-500.0,0.00013698,2]
[341816198,1731238240920,-500.0,0.00013698,2]
[341816199,1731238240929,-500.0,0.00013698,2]
[341816200,1731238240940,-611.13786777,0.00013698,2]
[341816201,1731238240949,-179.29685772,0.00013698,2]
[341816202,1731238240959,-500.0,0.00013698,2]
[341816203,1731238240969,-500.0,0.00013698,2]
[341816204,1731238240978,-500.0,0.00013698,2]
[341816205,1731238240988,-500.0,0.00013698,2]
[341816206,1731238240998,-500.0,0.00013698,2]
[341816207,1731238241008,-500.0,0.00013698,2]
[341816208,1731238241018,-505.95517217,0.00013698,2]
[341816209,1731238241027,-500.0,0.00013698,2]
[341816210,1731238241037,-861.7,0.00013698,2]
[341816211,1731238241046,-861.7,0.00013698,2]
[341816212,1731238241056,-861.7,0.00013698,2]
[341816213,1731238241065,-861.7,0.00013698,2]
[341816214,1731238241075,-861.7,0.00013698,2]
[341816215,1731238241084,-861.7,0.00013698,2]
[341816216,1731238241094,-1879.44,0.00013698,2]
[341816217,1731238241103,-861.7,0.00013698,2]
[341816218,1731238241116,-1879.44,0.00013698,2]
[341816219,1731238241138,-861.7,0.00013698,2]
[341816220,1731238241159,-861.7,0.00013698,2]
[341816221,1731238241182,-1879.44,0.00013698,2]
[341816222,1731238241215,-861.7,0.00013698,2]
[341816223,1731238241245,-1879.44,0.00013698,2]
[341816224,1731238241274,-861.7,0.00013698,2]
[341816225,1731238241294,-1879.44,0.00013698,2]
[341816226,1731238241306,-861.7,0.00013698,2]
[341816227,1731238241315,-1879.44,0.00013698,2]
[341816228,1731238241324,-861.7,0.00013698,2]
[341816229,1731238241334,-1879.44,0.00013698,2]
[341816230,1731238241343,-1879.44,0.00013698,2]
[341816231,1731238241353,-861.7,0.00013698,2]
[341816232,1731238241362,-1879.44,0.00013698,2]
[341816233,1731238241371,-861.7,0.00013698,2]
[341816234,1731238241381,-861.7,0.00013698,2]
[341816235,1731238241390,-1879.44,0.00013698,2]
[341816236,1731238241399,-861.7,0.00013698,2]
[341816237,1731238241409,-1879.44,0.00013698,2]
[341816238,1731238241419,-861.7,0.00013698,2]
[341816239,1731238241428,-1879.44,0.00013698,2]
[341816240,1731238241437,-861.7,0.00013698,2]
[341816241,1731238241447,-1879.44,0.00013698,2]
[341816242,1731238241457,-861.7,0.00013698,2]
[341816243,1731238241466,-1879.44,0.00013698,2]
[341816244,1731238241476,-670.16,0.00013698,2]
[341816245,1731238241487,-1879.44,0.00013698,2]
[341816246,1731238241496,-861.7,0.00013698,2]
[341816247,1731238241506,-670.16,0.00013698,2]
[341816248,1731238241515,-1879.44,0.00013698,2]
[341816249,1731238241524,-861.7,0.00013698,2]
[341816250,1731238241534,-1879.44,0.00013698,2]
[341816251,1731238241543,-861.7,0.00013698,2]
[341816252,1731238241553,-670.16,0.00013698,2]
[341816253,1731238241563,-1879.44,0.00013698,2]
[341816254,1731238241572,-861.8,0.00013698,2]
[341816255,1731238241581,-670.16,0.00013698,2]
[341816256,1731238241591,-1879.44,0.00013698,2]
[341816257,1731238241601,-670.16,0.00013698,2]
[341816258,1731238241610,-670.16,0.00013698,2]
[341816259,1731238241620,-670.16,0.00013698,2]
[341816260,1731238241629,-1879.44,0.00013698,2]
[341816261,1731238241639,-670.16,0.00013698,2]
[341816262,1731238241648,-1879.44,0.00013698,2]
[341816263,1731238241658,-670.16,0.00013698,2]
[341816264,1731238241668,-1879.44,0.00013698,2]
[341816265,1731238241678,-1879.44,0.00013698,2]
[341816266,1731238241687,-670.16,0.00013698,2]
[341816267,1731238241697,-1879.60711535,0.00013698,2]
[341816268,1731238241707,-670.16,0.00013698,2]
[341816269,1731238241716,-670.16,0.00013698,2]
[341816270,1731238241726,-670.16,0.00013698,2]
[341816271,1731238241735,-670.16,0.00013698,2]
[341816272,1731238241745,-670.16,0.00013698,2]
[341816273,1731238241755,-670.16,0.00013698,2]
[341816274,1731238241765,-670.16,0.00013698,2]
[341816275,1731238241774,-670.16,0.00013698,2]
[341816276,1731238241784,-500.0,0.00013698,2]
[341816277,1731238241796,-500.0,0.00013698,2]
[341816278,1731238241806,-500.0,0.00013698,2]
[341816279,1731238241815,-500.0,0.00013698,2]
[341816280,1731238241825,-500.0,0.00013698,2]
[341816281,1731238241837,-500.0,0.00013698,2]
[341816282,1731238241847,-500.0,0.00013698,2]
[341816283,1731238241856,-500.0,0.00013698,2]
[341816284,1731238241866,-500.0,0.00013698,2]
[341816285,1731238241878,-500.0,0.00013698,2]
[341816286,1731238241888,-500.0,0.00013698,2]
[341816287,1731238241898,-500.0,0.00013698,2]
[341816288,1731238241907,-500.0,0.00013698,2]
[341816289,1731238241917,-500.0,0.00013698,2]
[341816290,1731238241926,-500.0,0.00013698,2]
[341816291,1731238241936,-500.0,0.00013698,2]
[341816292,1731238241945,-500.0,0.00013698,2]
[341816293,1731238241955,-594.35,0.00013698,2]
[341816294,1731238241965,-500.0,0.00013698,2]
[341816295,1731238241975,-500.0,0.00013698,2]
[341816296,1731238241984,-500.0,0.00013698,2]
[341816297,1731238241994,-500.0,0.00013698,2]
[341816298,1731238242003,-500.0,0.00013698,2]
[341816299,1731238242013,-500.0,0.00013698,2]
[341816300,1731238242022,-379.2,0.00013698,2]
[341816301,1731238242032,-670.16,0.00013698,2]
[341816302,1731238242041,-670.16,0.00013698,2]
[341816303,1731238242050,-670.16,0.00013698,2]
[341816304,1731238242059,-670.16,0.00013698,2]
[341816305,1731238242069,-670.16,0.00013698,2]
[341816306,1731238242079,-670.27024118,0.00013698,2]
[341816307,1731238242088,-500.0,0.00013698,2]
[341816308,1731238242097,-185.86876462,0.00013698,2]
[341816309,1731238242106,-500.0,0.00013698,2]
[341816310,1731238242115,-500.0,0.00013698,2]
[341816311,1731238242124,-500.0,0.00013698,2]
[341816312,1731238242133,-500.0,0.00013698,2]
[341816313,1731238242143,-500.0,0.00013698,2]
[341816314,1731238242152,-500.0,0.00013698,2]
[341816315,1731238242161,-500.0,0.00013698,2]
[341816316,1731238242170,-151.0,0.00013698,2]
[341816317,1731238242179,-500.0,0.00013698,2]
[341816318,1731238242190,-151.0,0.00013698,2]
[341816319,1731238242199,-500.0,0.00013698,2]
[341816320,1731238242208,-151.0,0.00013698,2]
[341816321,1731238242217,-500.0,0.00013698,2]
[341816322,1731238242227,-500.0,0.00013698,2]
[341816323,1731238242236,-500.0,0.00013698,2]
[341816324,1731238242245,-500.0,0.00013698,2]
[341816325,1731238242254,-500.0,0.00013698,2]
[341816326,1731238242263,-266.77921268,0.00013698,2]
[341816327,1731238242272,-1887.84,0.00013698,2]
[341816328,1731238242283,-1887.84,0.00013698,2]
[341816329,1731238242292,-1887.84,0.00013698,2]
[341816330,1731238242301,-1887.84,0.00013698,2]
[341816331,1731238242311,-1887.84,0.00013698,2]
[341816332,1731238242320,-1887.84,0.00013698,2]
[341816333,1731238242329,-225.92831186,0.00013698,2]
[341816334,1731238242338,-1887.84,0.00013698,2]
[341816335,1731238242348,-1887.84,0.00013698,2]
[341816336,1731238242358,-1887.84,0.00013698,2]
[341816337,1731238242367,-1887.84,0.00013698,2]
[341816338,1731238242376,-1887.84,0.00013698,2]
[341816339,1731238242385,-1887.84,0.00013698,2]
[341816340,1731238242395,-1887.84,0.00013698,2]
[341816341,1731238242405,-1887.84,0.00013698,2]
[341816342,1731238242414,-1887.84,0.00013698,2]
[341816343,1731238242423,-1887.84,0.00013698,2]
[341816344,1731238242433,-1887.84,0.00013698,2]
[341816345,1731238242443,-1887.84,0.00013698,2]
[341816346,1731238242452,-1887.84,0.00013698,2]
[341816347,1731238242461,-1887.84,0.00013698,2]
[341816348,1731238242471,-1887.84,0.00013698,2]
[341816349,1731238242480,-1887.84,0.00013698,2]
[341816350,1731238242490,-1887.84,0.00013698,2]
[341816351,1731238242499,-1887.90781267,0.00013698,2]
[341816352,1731238242507,-500.0,0.00013698,2]
[341816353,1731238242517,-500.0,0.00013698,2]
[341816354,1731238242526,-596.31,0.00013698,2]
[341816355,1731238242535,-500.0,0.00013698,2]
[341816356,1731238242544,-596.31,0.00013698,2]
[341816357,1731238242555,-500.0,0.00013698,2]
[341816358,1731238242564,-596.31,0.00013698,2]
[341816359,1731238242574,-500.0,0.00013698,2]
[341816360,1731238242583,-596.31,0.00013698,2]
[341816361,1731238242592,-500.0,0.00013698,2]